[Event "Early-Titled-Tuesday-Blitz-January-23-2024"]
[Site "Chess.com"]
[Date "2024.01.23"]
[Round "2"]
[White "annasargsyan_m"]
[Black "Rikikits"]
[Result "0-1"]
[WhiteElo "2561"]
[BlackElo "2846"]
[TimeControl "180+1"]
[EndTime "8:19:15 PST"]
[Termination "Rikikits won on time"]

1. d4 {[%clk 0:02:54.3]} 1... d5 {[%clk 0:02:59.8]} 2. c4 {[%clk 0:02:52.6]}
2... c6 {[%clk 0:03:00.3]} 3. Nf3 {[%clk 0:02:52.5]} 3... Nf6 {[%clk 0:03:00.5]}
4. Nc3 {[%clk 0:02:50.3]} 4... dxc4 {[%clk 0:02:59.9]} 5. a4 {[%clk 0:02:50.2]}
5... Bf5 {[%clk 0:02:59.6]} 6. Ne5 {[%clk 0:02:50.9]} 6... Nbd7 {[%clk
0:02:59.6]} 7. Nxc4 {[%clk 0:02:50.7]} 7... Nb6 {[%clk 0:03:00]} 8. Ne5 {[%clk
0:02:46.7]} 8... a5 {[%clk 0:03:00.1]} 9. g3 {[%clk 0:02:45.5]} 9... e6 {[%clk
0:02:57.4]} 10. Bg2 {[%clk 0:02:45.9]} 10... Bb4 {[%clk 0:02:57.5]} 11. O-O
{[%clk 0:02:46.3]} 11... O-O {[%clk 0:02:56.9]} 12. Bg5 {[%clk 0:02:43.7]} 12...
h6 {[%clk 0:02:53.7]} 13. Bxf6 {[%clk 0:02:44.2]} 13... Qxf6 {[%clk 0:02:53.8]}
14. e3 {[%clk 0:02:44.8]} 14... Rfd8 {[%clk 0:02:51.1]} 15. Qb3 {[%clk
0:02:44.6]} 15... Nd7 {[%clk 0:02:27.9]} 16. f4 {[%clk 0:02:34.4]} 16... Nxe5
{[%clk 0:02:24.8]} 17. fxe5 {[%clk 0:02:34.1]} 17... Qe7 {[%clk 0:02:17.9]} 18.
Rf4 {[%clk 0:02:29.9]} 18... Bg6 {[%clk 0:02:12.8]} 19. Raf1 {[%clk 0:02:29.1]}
19... Rd7 {[%clk 0:01:49.8]} 20. Be4 {[%clk 0:02:28.4]} 20... Bxe4 {[%clk
0:01:44.7]} 21. Nxe4 {[%clk 0:02:29.3]} 21... Rad8 {[%clk 0:01:44.2]} 22. Qd1
{[%clk 0:02:11.9]} 22... Qf8 {[%clk 0:01:36.5]} 23. Qh5 {[%clk 0:02:10.5]} 23...
c5 {[%clk 0:01:26.7]} 24. Nd6 {[%clk 0:00:56.5]} 24... f5 {[%clk 0:01:06.2]} 25.
Qg6 {[%clk 0:00:14.1]} 25... Rxd6 {[%clk 0:00:54.3]} 26. exd6 {[%clk 0:00:15]}
26... Rxd6 {[%clk 0:00:49.7]} 27. g4 {[%clk 0:00:15.2]} 27... Bd2 {[%clk
0:00:47.3]} 28. R4f3 {[%clk 0:00:14.2]} 28... cxd4 {[%clk 0:00:45]} 29. exd4
{[%clk 0:00:15.1]} 29... Bg5 {[%clk 0:00:25]} 30. gxf5 {[%clk 0:00:14.9]} 30...
e5 {[%clk 0:00:25.4]} 31. f6 {[%clk 0:00:14.2]} 31... Rxf6 {[%clk 0:00:24.9]}
32. Rxf6 {[%clk 0:00:13.9]} 32... Bxf6 {[%clk 0:00:25.8]} 33. dxe5 {[%clk
0:00:12.9]} 33... Qc5+ {[%clk 0:00:26.4]} 34. Kh1 {[%clk 0:00:13.5]} 34... Qxe5
{[%clk 0:00:24.5]} 35. Qg2 {[%clk 0:00:13]} 35... b6 {[%clk 0:00:20.6]} 36. b3
{[%clk 0:00:12.9]} 36... Kh7 {[%clk 0:00:19.9]} 37. Qf3 {[%clk 0:00:13.8]} 37...
Kg8 {[%clk 0:00:18.2]} 38. Qd3 {[%clk 0:00:13.4]} 38... Qc5 {[%clk 0:00:17.2]}
39. Qf3 {[%clk 0:00:13.6]} 39... Qe5 {[%clk 0:00:17]} 40. Qa8+ {[%clk
0:00:14.2]} 40... Kh7 {[%clk 0:00:16.8]} 41. Qf3 {[%clk 0:00:14.9]} 41... Qc5
{[%clk 0:00:16.9]} 42. Re1 {[%clk 0:00:15.1]} 42... Kg8 {[%clk 0:00:15.4]} 43.
Qe4 {[%clk 0:00:15.5]} 43... Kh8 {[%clk 0:00:14]} 44. Qe8+ {[%clk 0:00:15.3]}
44... Kh7 {[%clk 0:00:14.6]} 45. Qe4+ {[%clk 0:00:16]} 45... Kh8 {[%clk
0:00:15]} 46. Rf1 {[%clk 0:00:16.5]} 46... Kg8 {[%clk 0:00:14.2]} 47. Rd1 {[%clk
0:00:16.1]} 47... Kh8 {[%clk 0:00:13.5]} 48. Re1 {[%clk 0:00:16.4]} 48... Kg8
{[%clk 0:00:13.3]} 49. Qf3 {[%clk 0:00:17.1]} 49... Qd4 {[%clk 0:00:08.7]} 50.
Re8+ {[%clk 0:00:16.7]} 50... Kf7 {[%clk 0:00:09.2]} 51. Re4 {[%clk 0:00:15.6]}
51... Qa1+ {[%clk 0:00:09.2]} 52. Kg2 {[%clk 0:00:16.2]} 52... Qb2+ {[%clk
0:00:09.7]} 53. Re2 {[%clk 0:00:16.9]} 53... Qd4 {[%clk 0:00:09.9]} 54. Qe4
{[%clk 0:00:17.1]} 54... Qc5 {[%clk 0:00:09.1]} 55. Qb7+ {[%clk 0:00:17.2]}
55... Kg6 {[%clk 0:00:03.9]} 56. Qf3 {[%clk 0:00:16.6]} 56... Qg5+ {[%clk
0:00:03.3]} 57. Qg3 {[%clk 0:00:16.7]} 57... Bd4 {[%clk 0:00:03.4]} 58. Re6+
{[%clk 0:00:15.6]} 58... Kf5 {[%clk 0:00:02.8]} 59. Qxg5+ {[%clk 0:00:13.9]}
59... Kxg5 {[%clk 0:00:03.7]} 60. Rc6 {[%clk 0:00:14]} 60... Bc5 {[%clk
0:00:04.1]} 61. Kf3 {[%clk 0:00:14.3]} 61... g6 {[%clk 0:00:04.2]} 62. Kg3
{[%clk 0:00:13.6]} 62... h5 {[%clk 0:00:04.7]} 63. h4+ {[%clk 0:00:13.5]} 63...
Kf5 {[%clk 0:00:05.5]} 64. Kf3 {[%clk 0:00:13.8]} 64... Bd4 {[%clk 0:00:05.9]}
65. Rd6 {[%clk 0:00:13.7]} 65... Bc5 {[%clk 0:00:06.5]} 66. Rd5+ {[%clk
0:00:14.4]} 66... Kf6 {[%clk 0:00:07]} 67. Kf4 {[%clk 0:00:10.4]} 67... Bf2
{[%clk 0:00:06]} 68. Rd6+ {[%clk 0:00:10.1]} 68... Kf7 {[%clk 0:00:06]} 69. Rc6
{[%clk 0:00:07.6]} 69... Bxh4 {[%clk 0:00:05.8]} 70. Rxb6 {[%clk 0:00:07.9]}
70... Be1 {[%clk 0:00:06.4]} 71. Rb7+ {[%clk 0:00:03.9]} 71... Kf6 {[%clk
0:00:06.1]} 72. Rb6+ {[%clk 0:00:04.6]} 72... Kg7 {[%clk 0:00:06.4]} 73. Rb5
{[%clk 0:00:04.4]} 73... Kh6 {[%clk 0:00:06.1]} 74. Kf3 {[%clk 0:00:04.2]} 74...
g5 {[%clk 0:00:05.9]} 75. Rb6+ {[%clk 0:00:03.9]} 75... Kg7 {[%clk 0:00:05.9]}
76. Ke4 {[%clk 0:00:04.6]} 76... g4 {[%clk 0:00:06]} 77. Kf5 {[%clk 0:00:05.2]}
77... g3 {[%clk 0:00:05.2]} 78. Rg6+ {[%clk 0:00:05.7]} 78... Kf7 {[%clk
0:00:05.3]} 79. Rh6 {[%clk 0:00:05.5]} 79... Bf2 {[%clk 0:00:03.8]} 80. Rg6
{[%clk 0:00:02.6]} 80... h4 {[%clk 0:00:03.4]} 0-1

[Event "Early-Titled-Tuesday-Blitz-January-23-2024"]
[Site "Chess.com"]
[Date "2024.01.23"]
[Round "2"]
[White "Irishchessman16"]
[Black "KevinGeorgeMicheal"]
[Result "0-1"]
[WhiteElo "2488"]
[BlackElo "2280"]
[TimeControl "180+1"]
[EndTime "8:20:06 PST"]
[Termination "KevinGeorgeMicheal won by resignation"]

1. e4 {[%clk 0:03:00.9]} 1... e5 {[%clk 0:02:47.5]} 2. Nf3 {[%clk 0:02:57.9]}
2... Nf6 {[%clk 0:02:46.3]} 3. Nxe5 {[%clk 0:02:55.7]} 3... d6 {[%clk
0:02:45.9]} 4. Nd3 {[%clk 0:02:55.8]} 4... Nxe4 {[%clk 0:02:44.9]} 5. Nf4 {[%clk
0:02:56]} 5... Nf6 {[%clk 0:02:42.7]} 6. d4 {[%clk 0:02:52.7]} 6... d5 {[%clk
0:02:42.1]} 7. Bd3 {[%clk 0:02:49.7]} 7... Bd6 {[%clk 0:02:39.5]} 8. O-O {[%clk
0:02:48.2]} 8... O-O {[%clk 0:02:38.9]} 9. Nc3 {[%clk 0:02:46]} 9... c6 {[%clk
0:02:35.6]} 10. Nce2 {[%clk 0:02:45.6]} 10... Re8 {[%clk 0:02:28.8]} 11. Ng3
{[%clk 0:02:41.1]} 11... Nbd7 {[%clk 0:02:21.5]} 12. c3 {[%clk 0:02:32.3]} 12...
Qc7 {[%clk 0:02:19.6]} 13. Qf3 {[%clk 0:02:26.7]} 13... Nf8 {[%clk 0:02:16.2]}
14. h3 {[%clk 0:02:26.3]} 14... Ne6 {[%clk 0:01:59]} 15. Nfh5 {[%clk 0:02:20.6]}
15... Nxh5 {[%clk 0:01:52.2]} 16. Nxh5 {[%clk 0:02:14.8]} 16... Nf8 {[%clk
0:01:29.1]} 17. Bh6 {[%clk 0:02:10.3]} 17... Ne6 {[%clk 0:01:04.9]} 18. Bxg7
{[%clk 0:01:21.8]} 18... Nxg7 {[%clk 0:00:45.2]} 19. Nf6+ {[%clk 0:01:20]} 19...
Kf8 {[%clk 0:00:40.9]} 20. Nxh7+ {[%clk 0:01:16]} 20... Kg8 {[%clk 0:00:40.3]}
21. Nf6+ {[%clk 0:01:14.8]} 21... Kf8 {[%clk 0:00:40.5]} 22. Nxe8 {[%clk
0:01:05.5]} 22... Kxe8 {[%clk 0:00:40.3]} 23. c4 {[%clk 0:00:58.6]} 23... Be6
{[%clk 0:00:37.5]} 24. Rfe1 {[%clk 0:00:53.7]} 24... Kf8 {[%clk 0:00:15.9]} 25.
cxd5 {[%clk 0:00:43]} 25... Bxd5 {[%clk 0:00:13.4]} 26. Be4 {[%clk 0:00:43.2]}
26... Bxe4 {[%clk 0:00:11.5]} 27. Rxe4 {[%clk 0:00:44.1]} 27... Re8 {[%clk
0:00:10.5]} 28. Rxe8+ {[%clk 0:00:43.2]} 28... Kxe8 {[%clk 0:00:10.1]} 29. Re1+
{[%clk 0:00:38.6]} 29... Ne6 {[%clk 0:00:09.6]} 30. Qh5 {[%clk 0:00:32.9]} 30...
Ke7 {[%clk 0:00:06.6]} 31. Qh4+ {[%clk 0:00:31.5]} 31... Ke8 {[%clk 0:00:06.1]}
32. Qh8+ {[%clk 0:00:28.2]} 32... Bf8 {[%clk 0:00:04.1]} 33. g3 {[%clk
0:00:22.6]} 33... Qd6 {[%clk 0:00:03.5]} 34. h4 {[%clk 0:00:21.5]} 34... Qb4
{[%clk 0:00:02.4]} 35. Re2 {[%clk 0:00:20.9]} 35... Qc4 {[%clk 0:00:02.3]} 36.
Qe5 {[%clk 0:00:20.1]} 36... Qxa2 {[%clk 0:00:02]} 37. Qb8+ {[%clk 0:00:20]}
37... Ke7 {[%clk 0:00:02.5]} 38. Qxb7+ {[%clk 0:00:19.4]} 38... Kf6 {[%clk
0:00:02.7]} 39. Qxc6 {[%clk 0:00:19.3]} 39... Qa1+ {[%clk 0:00:03]} 40. Kg2
{[%clk 0:00:19.1]} 40... Kg7 {[%clk 0:00:03.3]} 41. d5 {[%clk 0:00:18.1]} 41...
Nd4 {[%clk 0:00:03.3]} 42. Qc3 {[%clk 0:00:18.2]} 42... Bc5 {[%clk 0:00:03.5]}
43. Re4 {[%clk 0:00:17.4]} 43... Qd1 {[%clk 0:00:02.6]} 44. Rf4 {[%clk
0:00:13.3]} 44... Bb6 {[%clk 0:00:02.1]} 45. h5 {[%clk 0:00:12.2]} 45... Qa4
{[%clk 0:00:02.5]} 46. d6 {[%clk 0:00:09.6]} 46... Qd7 {[%clk 0:00:02.4]} 47.
Rxd4 {[%clk 0:00:08.9]} 47... Bxd4 {[%clk 0:00:03]} 48. Qxd4+ {[%clk 0:00:08.6]}
48... Kh7 {[%clk 0:00:03.6]} 49. Qe4+ {[%clk 0:00:08.6]} 49... Kg7 {[%clk
0:00:03.9]} 50. Qe5+ {[%clk 0:00:08.8]} 50... Kh7 {[%clk 0:00:03.9]} 51. Qe7
{[%clk 0:00:08.6]} 51... Qc6+ {[%clk 0:00:04.3]} 52. Kh2 {[%clk 0:00:08.9]}
52... Qf3 {[%clk 0:00:04.5]} 53. d7 {[%clk 0:00:06.5]} 53... Qxf2+ {[%clk
0:00:04.7]} 54. Kh3 {[%clk 0:00:05.7]} 54... Qf1+ {[%clk 0:00:03.3]} 55. Kg4
{[%clk 0:00:05.8]} 55... Qd1+ {[%clk 0:00:02.7]} 56. Kf4 {[%clk 0:00:05.3]}
56... Qf1+ {[%clk 0:00:02.8]} 57. Ke5 {[%clk 0:00:05.4]} 57... Qe1+ {[%clk
0:00:03]} 58. Kd6 {[%clk 0:00:05.5]} 58... Qb4+ {[%clk 0:00:03.1]} 59. Kc7
{[%clk 0:00:02.6]} 59... Qxe7 {[%clk 0:00:03.6]} 60. Kc8 {[%clk 0:00:02.9]}
60... Qc5+ {[%clk 0:00:03.9]} 61. Kb7 {[%clk 0:00:02.6]} 61... Qd6 {[%clk
0:00:04.1]} 62. Kc8 {[%clk 0:00:02.6]} 62... Qc6+ {[%clk 0:00:04.4]} 63. Kd8
{[%clk 0:00:02.3]} 63... Kh6 {[%clk 0:00:03.3]} 64. Ke7 {[%clk 0:00:01.5]} 64...
Qe4+ {[%clk 0:00:03.5]} 65. Kxf7 {[%clk 0:00:01.4]} 65... Qd5+ {[%clk
0:00:03.7]} 66. Ke7 {[%clk 0:00:01.7]} 66... Qe5+ {[%clk 0:00:03.6]} 67. Kf7
{[%clk 0:00:01.9]} 67... Qd6 {[%clk 0:00:04]} 68. Ke8 {[%clk 0:00:01.6]} 68...
Qe6+ {[%clk 0:00:04.3]} 69. Kd8 {[%clk 0:00:01.6]} 69... Kxh5 {[%clk 0:00:04.5]}
70. Kc7 {[%clk 0:00:01.8]} 70... Qc4+ {[%clk 0:00:04.6]} 71. Kb7 {[%clk
0:00:01.9]} 71... Qd5+ {[%clk 0:00:04.6]} 72. Kc7 {[%clk 0:00:02.3]} 72... Qc5+
{[%clk 0:00:04.7]} 73. Kb7 {[%clk 0:00:02.7]} 73... Qd6 {[%clk 0:00:04.9]} 74.
Kc8 {[%clk 0:00:03.3]} 74... Qc6+ {[%clk 0:00:05.2]} 75. Kd8 {[%clk 0:00:03.9]}
75... Kg6 {[%clk 0:00:04.9]} 76. Ke7 {[%clk 0:00:04.2]} 76... Qe4+ {[%clk
0:00:05.2]} 77. Kd6 {[%clk 0:00:04.4]} 77... Qd4+ {[%clk 0:00:05.4]} 78. Kc6
{[%clk 0:00:04.7]} 78... Kf7 {[%clk 0:00:04.1]} 79. Kb7 {[%clk 0:00:03.6]} 79...
Qxd7+ {[%clk 0:00:03.7]} 0-1

[Event "Early-Titled-Tuesday-Blitz-January-23-2024"]
[Site "Chess.com"]
[Date "2024.01.23"]
[Round "2"]
[White "Knightmare1014"]
[Black "crazy_m_attack"]
[Result "0-1"]
[WhiteElo "2164"]
[BlackElo "2473"]
[TimeControl "180+1"]
[EndTime "8:20:08 PST"]
[Termination "crazy_m_attack won by checkmate"]

1. e4 {[%clk 0:02:56.7]} 1... e5 {[%clk 0:03:00]} 2. Nf3 {[%clk 0:02:56.6]} 2...
Nc6 {[%clk 0:03:00.7]} 3. Bb5 {[%clk 0:02:56.6]} 3... a6 {[%clk 0:03:00.9]} 4.
Ba4 {[%clk 0:02:56.8]} 4... Nf6 {[%clk 0:03:01.4]} 5. O-O {[%clk 0:02:56]} 5...
Be7 {[%clk 0:03:01.7]} 6. Re1 {[%clk 0:02:55.1]} 6... b5 {[%clk 0:03:02.1]} 7.
Bb3 {[%clk 0:02:55.3]} 7... O-O {[%clk 0:03:03]} 8. a4 {[%clk 0:02:52.9]} 8...
b4 {[%clk 0:03:00.1]} 9. d4 {[%clk 0:02:52.8]} 9... d6 {[%clk 0:03:00.4]} 10.
dxe5 {[%clk 0:02:52.9]} 10... Nxe5 {[%clk 0:03:01.3]} 11. Nxe5 {[%clk
0:02:52.3]} 11... dxe5 {[%clk 0:03:02.2]} 12. Qe2 {[%clk 0:02:52.7]} 12... Bc5
{[%clk 0:02:56.9]} 13. Be3 {[%clk 0:02:52.6]} 13... Qe7 {[%clk 0:02:55.8]} 14.
Nd2 {[%clk 0:02:46.9]} 14... a5 {[%clk 0:02:53.9]} 15. Bc4 {[%clk 0:02:33.9]}
15... Bb7 {[%clk 0:02:51.6]} 16. f3 {[%clk 0:02:31.5]} 16... Rfd8 {[%clk
0:02:47.7]} 17. Nb3 {[%clk 0:02:31.4]} 17... Bxe3+ {[%clk 0:02:41.7]} 18. Qxe3
{[%clk 0:02:32.3]} 18... Nd7 {[%clk 0:02:38.9]} 19. Rad1 {[%clk 0:02:31.1]}
19... Nb6 {[%clk 0:02:38.7]} 20. Bb5 {[%clk 0:02:29.7]} 20... c6 {[%clk
0:02:35.7]} 21. Qxb6 {[%clk 0:02:28.4]} 21... cxb5 {[%clk 0:02:35.8]} 22. axb5
{[%clk 0:02:20.9]} 22... Rdb8 {[%clk 0:02:03.1]} 23. Qe3 {[%clk 0:02:16.5]}
23... Bc8 {[%clk 0:01:58.3]} 24. b6 {[%clk 0:02:14]} 24... Be6 {[%clk
0:01:48.3]} 25. Nc5 {[%clk 0:02:05.1]} 25... Rxb6 {[%clk 0:01:36]} 26. Nd3
{[%clk 0:02:02.9]} 26... Rb5 {[%clk 0:01:31.2]} 27. f4 {[%clk 0:02:01.7]} 27...
Bg4 {[%clk 0:01:24.9]} 28. Rd2 {[%clk 0:01:59.9]} 28... exf4 {[%clk 0:01:24.7]}
29. Nxf4 {[%clk 0:01:59.4]} 29... Re8 {[%clk 0:01:20.6]} 30. Qd3 {[%clk
0:01:55]} 30... Qa7+ {[%clk 0:01:13.3]} 31. Kh1 {[%clk 0:01:54.6]} 31... Rbe5
{[%clk 0:01:11.1]} 32. h3 {[%clk 0:01:52.1]} 32... Bc8 {[%clk 0:01:08.8]} 33.
Rde2 {[%clk 0:01:49.9]} 33... Ba6 {[%clk 0:01:08.5]} 34. Qe3 {[%clk 0:01:50]}
34... Qa8 {[%clk 0:00:54.6]} 35. Rd2 {[%clk 0:01:43.9]} 35... Bb7 {[%clk
0:00:54.2]} 36. Qd4 {[%clk 0:01:40.3]} 36... h6 {[%clk 0:00:51.4]} 37. Nd3
{[%clk 0:01:35.1]} 37... Rxe4 {[%clk 0:00:50]} 38. Rxe4 {[%clk 0:01:35.3]} 38...
Rxe4 {[%clk 0:00:48.5]} 39. Qf2 {[%clk 0:01:35]} 39... Re8 {[%clk 0:00:46.6]}
40. Nc5 {[%clk 0:01:34.4]} 40... Bc6 {[%clk 0:00:46.6]} 41. Rd1 {[%clk
0:01:31.6]} 41... Qc8 {[%clk 0:00:46]} 42. Kg1 {[%clk 0:01:23.6]} 42... Bb5
{[%clk 0:00:43.3]} 43. Nd3 {[%clk 0:01:21.9]} 43... Bc6 {[%clk 0:00:37.4]} 44.
Rf1 {[%clk 0:01:21.5]} 44... Qb7 {[%clk 0:00:33.8]} 45. Nc5 {[%clk 0:01:19.4]}
45... Qe7 {[%clk 0:00:31.9]} 46. Nd3 {[%clk 0:01:16.9]} 46... Qc7 {[%clk
0:00:24.2]} 47. Nf4 {[%clk 0:01:06.4]} 47... Re5 {[%clk 0:00:20.6]} 48. Nd3
{[%clk 0:01:04.4]} 48... Rg5 {[%clk 0:00:20.7]} 49. g4 {[%clk 0:00:56.1]} 49...
h5 {[%clk 0:00:19.1]} 50. Qf4 {[%clk 0:00:54.6]} 50... Qxf4 {[%clk 0:00:15.4]}
51. Rxf4 {[%clk 0:00:53.9]} 51... hxg4 {[%clk 0:00:12.7]} 52. Rxg4 {[%clk
0:00:53]} 52... Rh5 {[%clk 0:00:11.7]} 53. Kh2 {[%clk 0:00:50.3]} 53... Bd7
{[%clk 0:00:11.5]} 54. Rg3 {[%clk 0:00:50.3]} 54... Bf5 {[%clk 0:00:06]} 55. Nf4
{[%clk 0:00:48.6]} 55... Rh4 {[%clk 0:00:06]} 56. Nd5 {[%clk 0:00:47]} 56...
Bxc2 {[%clk 0:00:04.6]} 57. Re3 {[%clk 0:00:40.4]} 57... Be4 {[%clk 0:00:02.5]}
58. Nb6 {[%clk 0:00:38.1]} 58... Bc6 {[%clk 0:00:01.8]} 59. Rd3 {[%clk 0:00:34]}
59... Rh6 {[%clk 0:00:02.2]} 60. Nc8 {[%clk 0:00:32.8]} 60... Kh7 {[%clk
0:00:01.8]} 61. Ne7 {[%clk 0:00:32.1]} 61... Be4 {[%clk 0:00:02.3]} 62. Re3
{[%clk 0:00:31.2]} 62... Re6 {[%clk 0:00:02.7]} 63. Nc8 {[%clk 0:00:29.6]} 63...
a4 {[%clk 0:00:03.3]} 64. Na7 {[%clk 0:00:27.9]} 64... Bf5 {[%clk 0:00:02.1]}
65. Rf3 {[%clk 0:00:26.1]} 65... Be4 {[%clk 0:00:01.8]} 66. Re3 {[%clk
0:00:26.3]} 66... Bd5 {[%clk 0:00:02.4]} 67. Rd3 {[%clk 0:00:25.4]} 67... Re2+
{[%clk 0:00:02.5]} 68. Kg3 {[%clk 0:00:24.6]} 68... Be6 {[%clk 0:00:03]} 69. Rd4
{[%clk 0:00:23.2]} 69... Rxb2 {[%clk 0:00:03.2]} 70. Nc6 {[%clk 0:00:21.8]}
70... a3 {[%clk 0:00:02.8]} 71. Nxb4 {[%clk 0:00:20.8]} 71... a2 {[%clk
0:00:03.3]} 72. Nxa2 {[%clk 0:00:20.9]} 72... Rxa2 {[%clk 0:00:03.6]} 73. Rh4+
{[%clk 0:00:21.2]} 73... Kg8 {[%clk 0:00:03.6]} 74. Rd4 {[%clk 0:00:21.2]} 74...
Ra3+ {[%clk 0:00:03.9]} 75. Kf2 {[%clk 0:00:20.7]} 75... Rxh3 {[%clk 0:00:04.5]}
76. Rd8+ {[%clk 0:00:21.3]} 76... Kh7 {[%clk 0:00:04.4]} 77. Rb8 {[%clk
0:00:22]} 77... Rh6 {[%clk 0:00:04.7]} 78. Ra8 {[%clk 0:00:22.5]} 78... f5
{[%clk 0:00:05.1]} 79. Kf3 {[%clk 0:00:22.6]} 79... g5 {[%clk 0:00:03.9]} 80.
Ra7+ {[%clk 0:00:22.2]} 80... Kg6 {[%clk 0:00:04.5]} 81. Ra6 {[%clk 0:00:22.9]}
81... Kf6 {[%clk 0:00:05.2]} 82. Rb6 {[%clk 0:00:22.8]} 82... g4+ {[%clk
0:00:05.2]} 83. Kf4 {[%clk 0:00:23.1]} 83... Rh1 {[%clk 0:00:05.1]} 84. Ra6
{[%clk 0:00:19.4]} 84... Rf1+ {[%clk 0:00:04.4]} 85. Kg3 {[%clk 0:00:19.5]}
85... Rf3+ {[%clk 0:00:05]} 86. Kg2 {[%clk 0:00:18.6]} 86... Rb3 {[%clk
0:00:05.7]} 87. Rc6 {[%clk 0:00:18]} 87... f4 {[%clk 0:00:05.8]} 88. Ra6 {[%clk
0:00:17.3]} 88... Ke5 {[%clk 0:00:05.6]} 89. Ra5+ {[%clk 0:00:16.8]} 89... Bd5+
{[%clk 0:00:06.1]} 90. Kf2 {[%clk 0:00:16.1]} 90... g3+ {[%clk 0:00:06]} 91. Kg1
{[%clk 0:00:16.1]} 91... Rb1# {[%clk 0:00:06.3]} 0-1

[Event "Early-Titled-Tuesday-Blitz-January-23-2024"]
[Site "Chess.com"]
[Date "2024.01.23"]
[Round "3"]
[White "publicaccountcze"]
[Black "azikom"]
[Result "0-1"]
[WhiteElo "2311"]
[BlackElo "2700"]
[TimeControl "180+1"]
[EndTime "8:21:50 PST"]
[Termination "azikom won by resignation"]

1. e4 {[%clk 0:03:00.9]} 1... c5 {[%clk 0:03:00.2]} 2. Nc3 {[%clk 0:03:00.6]}
2... e6 {[%clk 0:03:00.1]} 3. f4 {[%clk 0:02:58.6]} 3... a6 {[%clk 0:03:01]} 4.
Nf3 {[%clk 0:02:58.7]} 4... d5 {[%clk 0:03:00]} 5. exd5 {[%clk 0:02:57.3]} 5...
exd5 {[%clk 0:03:00.9]} 6. d4 {[%clk 0:02:58.2]} 6... Nf6 {[%clk 0:02:59.5]} 7.
Be2 {[%clk 0:02:42.6]} 7... Nc6 {[%clk 0:02:58.9]} 8. O-O {[%clk 0:02:32.9]}
8... cxd4 {[%clk 0:02:58.5]} 9. Nxd4 {[%clk 0:02:32.9]} 9... Bc5 {[%clk
0:02:58.7]} 10. Be3 {[%clk 0:02:33.2]} 10... O-O {[%clk 0:02:58.4]} 11. Nxc6
{[%clk 0:02:28.5]} 11... Bxe3+ {[%clk 0:02:57.7]} 0-1

[Event "Early-Titled-Tuesday-Blitz-January-23-2024"]
[Site "Chess.com"]
[Date "2024.01.23"]
[Round "3"]
[White "Klavdia_Nik"]
[Black "Khromkin"]
[Result "1-0"]
[WhiteElo "2171"]
[BlackElo "2390"]
[TimeControl "180+1"]
[EndTime "8:22:44 PST"]
[Termination "Klavdia_Nik won by resignation"]

1. Nf3 {[%clk 0:02:48.1]} 1... c5 {[%clk 0:02:56.6]} 2. c4 {[%clk 0:02:47.1]}
2... Nc6 {[%clk 0:02:56.3]} 3. d4 {[%clk 0:02:44]} 3... cxd4 {[%clk 0:02:55.3]}
4. Nxd4 {[%clk 0:02:44.9]} 4... g6 {[%clk 0:02:55.8]} 5. e4 {[%clk 0:02:42.9]}
5... Bg7 {[%clk 0:02:55.8]} 6. Be3 {[%clk 0:02:43.3]} 6... Nf6 {[%clk
0:02:56.5]} 7. Nc3 {[%clk 0:02:43.6]} 7... Ng4 {[%clk 0:02:57.1]} 8. Qxg4 {[%clk
0:02:18.5]} 8... Nxd4 {[%clk 0:02:57.6]} 9. Bxd4 {[%clk 0:02:19.3]} 9... Bxd4
{[%clk 0:02:56.7]} 10. O-O-O {[%clk 0:02:18.3]} 10... Bxc3 {[%clk 0:02:56.6]}
11. bxc3 {[%clk 0:02:16.5]} 11... Qa5 {[%clk 0:02:55.9]} 12. Qe2 {[%clk
0:02:07.7]} 12... Qxc3+ {[%clk 0:02:54.3]} 13. Kb1 {[%clk 0:02:03.2]} 13... b5
{[%clk 0:02:49.1]} 14. Qb2 {[%clk 0:01:58.7]} 14... Qe5 {[%clk 0:02:30.7]} 15.
Qxe5 {[%clk 0:01:57]} 1-0

[Event "Early-Titled-Tuesday-Blitz-January-23-2024"]
[Site "Chess.com"]
[Date "2024.01.23"]
[Round "3"]
[White "kai_nov"]
[Black "koncheto"]
[Result "0-1"]
[WhiteElo "2293"]
[BlackElo "2565"]
[TimeControl "180+1"]
[EndTime "8:23:00 PST"]
[Termination "koncheto won by resignation"]

1. d4 {[%clk 0:03:00.9]} 1... Nf6 {[%clk 0:02:58.4]} 2. c4 {[%clk 0:02:59.9]}
2... e6 {[%clk 0:02:57.8]} 3. Nc3 {[%clk 0:02:59.7]} 3... c5 {[%clk 0:02:58.7]}
4. d5 {[%clk 0:02:59.2]} 4... exd5 {[%clk 0:02:59.6]} 5. cxd5 {[%clk 0:02:59.2]}
5... d6 {[%clk 0:03:00.5]} 6. e4 {[%clk 0:02:59]} 6... g6 {[%clk 0:03:00.9]} 7.
Nf3 {[%clk 0:02:58.9]} 7... a6 {[%clk 0:03:00.8]} 8. a4 {[%clk 0:02:57.6]} 8...
Bg4 {[%clk 0:03:00.8]} 9. Be2 {[%clk 0:02:57]} 9... Bxf3 {[%clk 0:03:00.3]} 10.
gxf3 {[%clk 0:02:55]} 10... Bg7 {[%clk 0:02:59]} 11. Be3 {[%clk 0:02:52.5]}
11... Nbd7 {[%clk 0:02:58.3]} 12. f4 {[%clk 0:02:52.8]} 12... O-O {[%clk
0:02:58.1]} 13. Qc2 {[%clk 0:02:18.9]} 13... Rc8 {[%clk 0:02:56.2]} 14. b3
{[%clk 0:02:17.4]} 14... Nxe4 {[%clk 0:02:48]} 15. Nxe4 {[%clk 0:02:10.6]} 15...
Bxa1 {[%clk 0:02:48.9]} 16. O-O {[%clk 0:02:07.7]} 16... Bg7 {[%clk 0:02:45.3]}
17. Nxd6 {[%clk 0:02:06.1]} 17... Rc7 {[%clk 0:02:45.7]} 18. f5 {[%clk
0:02:02.4]} 18... Ne5 {[%clk 0:02:40.6]} 19. Nc4 {[%clk 0:01:56]} 19... Qxd5
{[%clk 0:02:40.5]} 20. f4 {[%clk 0:01:50.5]} 20... Nxc4 {[%clk 0:02:38.3]} 21.
Bxc4 {[%clk 0:01:48.1]} 21... Qxf5 {[%clk 0:02:38.6]} 0-1

[Event "Early-Titled-Tuesday-Blitz-January-23-2024"]
[Site "Chess.com"]
[Date "2024.01.23"]
[Round "3"]
[White "KevinGeorgeMicheal"]
[Black "whiteglovethief"]
[Result "1-0"]
[WhiteElo "2313"]
[BlackElo "2537"]
[TimeControl "180+1"]
[EndTime "8:23:06 PST"]
[Termination "KevinGeorgeMicheal won by resignation"]

1. e4 {[%clk 0:02:58.9]} 1... e6 {[%clk 0:02:08]} 2. d4 {[%clk 0:02:54]} 2... d5
{[%clk 0:02:08]} 3. exd5 {[%clk 0:02:54.2]} 3... exd5 {[%clk 0:02:07.5]} 4. Nf3
{[%clk 0:02:54.8]} 4... Bd6 {[%clk 0:02:07]} 5. Bd3 {[%clk 0:02:54.9]} 5... Ne7
{[%clk 0:02:06.1]} 6. O-O {[%clk 0:02:55.1]} 6... O-O {[%clk 0:02:05.2]} 7. h3
{[%clk 0:02:55]} 7... Bf5 {[%clk 0:02:05.2]} 8. Bxf5 {[%clk 0:02:54.5]} 8...
Nxf5 {[%clk 0:02:04.8]} 9. c3 {[%clk 0:02:54.9]} 9... h6 {[%clk 0:02:02.7]} 10.
Qd3 {[%clk 0:02:52.4]} 10... Qf6 {[%clk 0:02:02.5]} 11. Re1 {[%clk 0:02:51.3]}
11... Nd7 {[%clk 0:02:02.4]} 12. Nbd2 {[%clk 0:02:39.6]} 12... Rfe8 {[%clk
0:02:01.7]} 13. Nf1 {[%clk 0:02:38.2]} 13... Rxe1 {[%clk 0:01:59.3]} 14. Nxe1
{[%clk 0:02:38.4]} 14... Nh4 {[%clk 0:01:55.2]} 15. Bd2 {[%clk 0:02:32.6]} 15...
Re8 {[%clk 0:01:53.1]} 16. Nc2 {[%clk 0:02:28.6]} 16... Qg5 {[%clk 0:01:46.1]}
17. Bxg5 {[%clk 0:02:28.1]} 1-0